bitfinex/quotes_ETHUSD_20240816
["timestamp","ask_amount","ask_price","bid_price","bid_amount"]
[1723807615063,3.80925,2625.2,2624.9,2.4819]
[1723807615257,3.80869,2625.6,2624.9,2.4819]
[1723807615459,3.80932,2625.2,2624.9,2.4819]
[1723807616483,3.80938,2625.1,2624.9,2.4819]
[1723807616898,3.81008,2624.7,2624.5,19.78986553]
[1723807617097,3.81008,2624.7,2624.3,7.45]
[1723807617098,3.81008,2624.7,2624.3,42.45]
[1723807617304,3.8099,2624.8,2624.3,42.45]
[1723807617896,3.81028,2624.5,2624.3,7.45]
[1723807618606,3.81002,2624.7,2624.3,7.45]
[1723807618766,7.62009,2624.7,2624.3,7.45]
[1723807619097,3.81036,2624.5,2624.3,7.45]
[1723807619293,3.81036,2624.5,2624.1,2.2763]
[1723807619494,7.62011,2624.7,2624.1,2.2763]
[1723807619702,0.07615787,2625.1,2624.1,2.2763]
[1723807619999,3.80971,2624.9,2624.1,2.2763]
[1723807620403,3.81057,2624.3,2624.1,2.2763]
[1723807620623,3.81057,2624.3,2624.0,19.78986553]
[1723807620624,3.81083,2624.1,2624.0,19.78986553]
[1723807620813,3.81083,2624.1,2623.9,35.0]
[1723807621101,3.81083,2624.1,2623.8,19.78986553]
[1723807621479,3.81083,2624.1,2623.8,54.78986553]
[1723807622120,3.8106,2624.3,2623.8,19.78986553]
[1723807623220,7.62124,2624.3,2623.8,19.78986553]
[1723807623515,3.81071,2624.2,2623.8,19.78986553]
[1723807624617,3.8106,2624.3,2623.8,19.78986553]
[1723807625357,3.81083,2624.1,2623.8,19.78986553]
[1723807625938,7.62176,2624.1,2623.8,19.78986553]
[1723807626097,3.81098,2624.0,2623.8,19.78986553]
[1723807626297,3.81112,2623.9,2623.8,19.78986553]
[1723807626605,3.81077,2624.2,2623.5,62.23986553]
[1723807626809,3.81077,2624.2,2623.6,0.99481]
[1723807627019,3.81077,2624.2,2623.6,4.80628]
[1723807627335,3.81077,2624.2,2623.7,2.2828]
[1723807627640,3.81031,2624.5,2624.0,3.81089]
[1723807627839,3.81041,2624.4,2623.8,39.56152906]
[1723807628045,3.81041,2624.4,2623.9,1.40981582]
[1723807628209,3.81018,2624.6,2624.0,3.81096]
[1723807628409,7.62087,2624.4,2623.9,1.40981582]
[1723807628647,3.81039,2624.4,2624.0,0.99481]
[1723807628959,3.81039,2624.4,2624.1,2.2828]
[1723807629164,3.81039,2624.4,2624.1,3.03320906]
[1723807629528,3.81018,2624.6,2624.1,3.03320906]
[1723807629830,3.81061,2624.3,2624.0,0.99481]
[1723807630038,3.81061,2624.3,2623.8,37.2644]
[1723807630810,3.81061,2624.3,2623.8,41.07557]
[1723807631522,3.81032,2624.5,2623.8,41.07557]
[1723807631728,2.2879,2625.1,2624.3,2.4655]
[1723807631954,2.2879,2625.1,2624.4,0.24655]
[1723807631955,3.81005,2624.7,2624.4,0.24655]
[1723807632303,3.81005,2624.7,2624.3,2.4655]
[1723807632979,3.80975,2624.9,2624.3,6.27601]
[1723807633380,3.80975,2624.9,2624.4,3.81031]
[1723807633882,3.80975,2624.9,2624.3,2.4655]
[1723807634177,3.80975,2624.9,2624.4,1.37261]
[1723807634559,3.80985,2624.8,2624.4,1.37261]
[1723807635184,3.80998,2624.7,2624.4,1.37261]
[1723807637310,3.81018,2624.6,2624.3,2.4655]
[1723807637492,3.80998,2624.7,2624.2,7.45]
[1723807637493,3.81034,2624.5,2624.2,7.45]
[1723807637661,3.81034,2624.5,2624.2,21.14191253]
[1723807638575,7.62069,2624.5,2624.2,21.14191253]
[1723807639087,3.81016,2624.6,2624.2,21.14191253]
[1723807641868,2.3678,2625.2,2624.2,21.14191253]
[1723807642081,0.05,2626.9,2624.4,2.3165]
[1723807642082,3.80946,2625.1,2624.4,2.3165]
[1723807642266,3.80916,2625.3,2624.6,2.3165]
[1723807642470,3.80916,2625.3,2624.8,3.8098]
[1723807642709,3.8089,2625.5,2625.0,3.80951]
[1723807643116,3.80887,2625.5,2624.9,3.80953]
[1723807643408,3.80887,2625.5,2625.0,0.612603]
[1723807644001,3.80904,2625.4,2625.0,0.612603]
[1723807645371,7.61775,2625.5,2625.0,0.612603]
[1723807645571,3.80887,2625.5,2625.1,0.4422133]
[1723807645812,7.61776,2625.5,2625.1,0.4422133]
[1723807646007,3.80902,2625.4,2625.1,0.4422133]
[1723807647083,3.80887,2625.5,2625.1,0.4422133]
[1723807647303,3.80865,2625.7,2625.2,2.3165]
[1723807647504,3.80865,2625.7,2625.2,22.10636553]
[1723807647679,3.80865,2625.7,2625.2,57.10636553]
[1723807648011,3.8084,2625.8,2625.2,19.78986553]
[1723807648304,3.80908,2625.3,2625.2,19.78986553]
[1723807649011,7.61816,2625.3,2625.2,19.78986553]
[1723807649674,8.76847479,2625.3,2625.2,19.78986553]
[1723807650197,8.76847479,2625.3,2624.4,22.04826553]
[1723807650198,3.81006,2624.7,2624.4,22.04826553]
[1723807650402,3.81003,2624.7,2624.4,2.2584]
[1723807650713,3.81003,2624.7,2624.5,2.20482655]
[1723807650920,3.80976,2624.9,2624.5,2.20482655]
[1723807651490,3.80983,2624.8,2624.5,2.20482655]
[1723807651817,3.80956,2625.0,2624.5,2.20482655]
[1723807651985,3.80956,2625.0,2624.6,0.44632266]
[1723807652181,7.61919,2625.0,2624.6,0.44632266]
[1723807652606,3.80941,2625.1,2624.6,4.25641266]
[1723807652807,3.80945,2625.1,2624.6,4.25641266]
[1723807653121,0.07615787,2625.1,2624.6,0.44632266]
[1723807653415,3.80967,2624.9,2624.4,25.85857553]
[1723807653615,3.80956,2625.0,2624.5,3.81024]
[1723807654279,3.80935,2625.2,2624.5,3.81023]
[1723807654485,3.8094,2625.1,2624.6,8.60658955]
[1723807655319,3.80925,2625.2,2624.7,38.80994]
[1723807655483,3.80925,2625.2,2624.7,39.60496533]
[1723807656115,3.80925,2625.2,2624.7,4.60496533]
[1723807656319,3.80925,2625.2,2624.7,4.60490533]
[1723807656619,3.80925,2625.2,2624.7,39.60490533]
[1723807657722,3.80902,2625.4,2624.8,3.8098]
[1723807658028,3.80916,2625.3,2624.8,2.36000955]
[1723807658225,6.2645,2625.8,2624.8,2.36000955]
[1723807658226,3.80926,2625.2,2624.8,2.36000955]
[1723807658414,3.8093,2625.2,2624.8,2.36000955]
[1723807658613,3.80938,2625.1,2624.8,2.36000955]
[1723807659107,3.80952,2625.0,2624.7,35.0]
[1723807659330,3.80952,2625.0,2624.6,2.4365]
[1723807659491,7.61915,2625.0,2624.6,2.4365]
[1723807659740,3.80952,2625.0,2624.6,2.4365]
[1723807660048,5.79838084,2625.6,2624.6,8.85018755]
[1723807660210,3.80935,2625.2,2624.6,8.85018755]
[1723807660707,3.80942,2625.1,2624.6,8.85018755]
[1723807661314,3.80935,2625.2,2624.6,8.85018755]
[1723807661516,7.61867,2625.2,2624.7,0.55136733]
[1723807662115,3.80945,2625.1,2624.7,0.55136733]
[1723807662315,3.80932,2625.2,2624.7,0.55136733]
[1723807662537,7.61866,2625.2,2624.7,0.55136733]
[1723807662924,3.80941,2625.1,2624.7,0.55136733]
[1723807663107,3.80981,2624.8,2624.6,2.4365]
[1723807664940,3.80968,2624.9,2624.6,2.4365]
[1723807665271,3.80952,2625.0,2624.7,0.24365]
[1723807666301,7.61912,2625.0,2624.7,0.24365]
[1723807666504,3.80968,2624.9,2624.6,2.4365]
[1723807667119,3.80953,2625.0,2624.6,2.4365]
[1723807667934,3.8093,2625.2,2624.6,6.24647]
[1723807668106,3.80938,2625.1,2624.7,0.624674]
[1723807668709,7.61836,2625.3,2624.7,4.434624]
[1723807668938,3.8093,2625.2,2624.8,0.6871144]
[1723807669246,3.80939,2625.1,2624.8,0.6871144]
[1723807669663,3.80939,2625.1,2624.7,0.624674]
[1723807670451,3.80939,2625.1,2624.6,2.4365]
[1723807670975,3.80939,2625.1,2624.6,6.24659]
[1723807671940,7.61887,2625.1,2624.6,2.4365]
[1723807672349,3.80954,2625.0,2624.6,2.4365]
[1723807672577,3.80954,2625.0,2624.6,6.24659]
[1723807673973,3.80954,2625.0,2624.6,2.4365]
[1723807674170,3.80954,2625.0,2624.6,22.22636553]
[1723807674771,3.80954,2625.0,2624.6,26.03645553]
[1723807675578,3.80937,2625.1,2624.6,26.03645553]
[1723807675987,3.80937,2625.1,2624.6,26.03637553]
[1723807676156,3.80937,2625.1,2624.6,22.22636553]
[1723807676491,1.99651268,2625.4,2624.6,22.22636553]
[1723807676492,3.80952,2625.0,2624.6,26.03644553]
[1723807676944,3.80952,2625.0,2624.6,22.22636553]
[1723807680096,7.61916,2625.0,2624.7,19.78986553]
[1723807680329,7.61914,2625.0,2624.7,19.78986553]
[1723807680541,3.80952,2625.0,2624.7,19.78986553]
[1723807681124,3.80981,2624.8,2624.7,19.78986553]
[1723807681321,3.80952,2625.0,2624.7,19.78986553]
[1723807681493,1.23101134,2627.8,2624.7,25.82244208]
[1723807681494,3.8094,2625.1,2624.7,25.82244208]
[1723807682413,3.8094,2625.1,2624.7,22.01250208]
[1723807683332,7.61887,2625.1,2624.7,22.01250208]
[1723807683796,3.8094,2625.1,2624.7,22.01250208]
[1723807683983,7.61887,2625.1,2624.7,22.01250208]
[1723807684182,3.80926,2625.2,2624.7,25.82241208]
[1723807684414,3.80939,2625.1,2624.7,22.01250208]
[1723807685241,3.80923,2625.2,2624.8,0.93239833]
[1723807685413,3.80909,2625.3,2624.9,2.3512]
[1723807685735,3.80924,2625.2,2624.9,2.3512]
[1723807686481,7.61858,2625.2,2624.9,2.3512]
[1723807687092,3.80944,2625.1,2624.9,2.3512]
[1723807688198,3.80924,2625.2,2624.9,2.3512]
[1723807689948,3.80903,2625.4,2624.9,8.75594055]
[1723807690150,3.80909,2625.3,2624.9,28.54580608]
[1723807690443,3.80872,2625.6,2625.0,2.3839]
[1723807690652,3.80872,2625.6,2624.9,23.59940553]
[1723807690653,7.6175,2625.6,2625.2,2.3839]
[1723807690852,3.80882,2625.5,2625.2,2.3839]
[1723807691345,3.80882,2625.5,2625.2,2.94060433]
[1723807692356,1.99849449,2625.9,2625.7,2.3409]
[1723807692552,3.80809,2626.0,2625.7,2.3409]
[1723807693207,3.80809,2626.0,2625.7,4.93485355]
[1723807693611,3.8083,2625.9,2625.7,4.93485355]
[1723807694822,1.99726619,2626.2,2625.7,4.93485355]
[1723807694823,3.80836,2625.8,2625.7,2.3409]
[1723807695238,2.52025787,2626.1,2625.5,19.78986553]
[1723807695450,3.80865,2625.6,2625.5,19.78986553]
[1723807696041,7.6173,2625.6,2625.5,19.78986553]
[1723807697818,7.6173,2625.6,2624.9,2.3114]
[1723807697819,3.80919,2625.3,2624.9,2.3114]
[1723807698613,3.8093,2625.2,2624.9,2.3114]
[1723807699021,3.80919,2625.3,2624.9,2.3114]
[1723807699253,3.80886,2625.5,2625.0,3.80939]
[1723807699459,3.80886,2625.5,2624.8,7.45]
[1723807699460,3.80901,2625.4,2625.1,2.3114]
[1723807699719,3.80916,2625.3,2625.1,2.3114]
[1723807700754,3.80923,2625.2,2624.8,9.7614]
[1723807700946,3.80949,2625.1,2624.8,2.3114]
[1723807701331,3.80923,2625.2,2624.8,2.3114]
[1723807702252,7.61857,2625.2,2624.8,2.3114]
[1723807702560,3.80923,2625.2,2624.8,2.3114]
[1723807702917,2.4776,2625.1,2624.5,2.3693]
[1723807703135,3.80974,2624.9,2624.5,2.3693]
[1723807704344,7.6195,2624.9,2624.5,2.3693]
[1723807704548,7.6195,2624.9,2624.5,2.987273]
[1723807704747,3.80981,2624.8,2624.5,2.987273]
[1723807704943,3.80974,2624.9,2624.5,2.987273]
[1723807705523,3.8099,2624.8,2624.5,2.3693]
[1723807705922,3.80948,2625.1,2624.5,2.3693]
[1723807706158,3.80969,2624.9,2624.5,2.3693]
[1723807706344,7.61944,2624.9,2624.5,3.368319]
[1723807706551,3.80969,2624.9,2624.5,3.368319]
[1723807707461,3.80982,2624.8,2624.5,3.368319]
[1723807708242,3.80982,2624.8,2624.5,2.3693]
[1723807709252,3.8079157,2624.8,2624.5,2.3693]
[1723807712096,3.80969,2624.9,2624.5,2.3693]
[1723807712746,3.80969,2624.9,2624.6,19.78986553]
[1723807713842,3.80989,2624.8,2624.6,19.78986553]
[1723807717956,3.80995,2624.7,2624.6,19.78986553]
[1723807718781,7.6199,2624.7,2624.6,19.78986553]
[1723807721789,3.8101,2624.6,2624.3,2.3624]
[1723807722084,3.8101,2624.6,2624.3,3.34364]
[1723807727010,3.80992,2624.8,2624.3,3.34364]
[1723807727217,3.80992,2624.8,2624.4,3.81038]
[1723807727415,3.80992,2624.8,2624.5,0.715402]
[1723807728413,3.80992,2624.8,2624.3,3.34364]
[1723807728414,3.81002,2624.7,2624.3,3.34364]
[1723807729418,3.80983,2624.8,2624.3,3.34364]
[1723807729713,3.80964,2625.0,2624.3,3.34364]
[1723807729714,3.80966,2624.9,2624.4,3.81039]
[1723807729918,3.80938,2625.1,2624.5,2.4656]
[1723807730119,3.80954,2625.0,2624.6,4.52347088]
[1723807730691,3.80954,2625.0,2624.6,0.71337088]
[1723807732115,7.61917,2625.0,2624.6,0.71337088]
[1723807732302,3.80967,2624.9,2624.7,0.82952109]
[1723807732905,3.80926,2625.2,2624.7,0.82952109]
[1723807733117,3.80913,2625.3,2624.8,6.08437]
[1723807733315,3.80913,2625.3,2624.8,25.87423553]
[1723807733528,2.2543,2625.7,2625.3,2.2747]
[1723807733529,3.80881,2625.5,2625.3,2.2747]
[1723807733900,3.80894,2625.4,2625.3,2.2747]
[1723807734312,3.80894,2625.4,2625.0,2.2747]
[1723807736750,3.80881,2625.5,2625.0,6.08421]
[1723807737050,7.61772,2625.5,2625.0,6.08421]
[1723807737363,3.80909,2625.3,2625.0,2.2747]
[1723807737686,3.80894,2625.4,2625.0,2.2747]
[1723807737976,3.80881,2625.5,2625.0,2.2747]
[1723807737977,3.8091,2625.3,2625.0,2.2747]
[1723807739400,3.80851,2625.7,2625.0,2.2747]
[1723807739679,3.80925,2625.2,2625.0,2.2747]
[1723807739843,3.80925,2625.2,2624.7,2.268]
[1723807740576,3.80952,2625.0,2624.7,2.268]
[1723807741343,3.80975,2624.9,2624.7,2.268]
[1723807741956,3.80981,2624.8,2624.7,2.268]
[1723807742352,3.80996,2624.7,2624.5,9.7391]
[1723807742566,7.61944,2624.9,2624.6,19.78986553]
[1723807742877,3.80967,2624.9,2624.6,19.78986553]
[1723807743085,3.80981,2624.8,2624.6,19.78986553]
[1723807744600,3.80995,2624.7,2624.6,19.78986553]
[1723807744850,3.80995,2624.7,2624.5,2.2891]
[1723807745251,7.61999,2624.7,2624.5,2.2891]
[1723807745459,7.61999,2624.7,2624.2,3.81066]
[1723807745460,3.8101,2624.6,2624.2,2.3398]
[1723807745653,3.8101,2624.6,2624.2,5.08093855]
[1723807746145,3.81026,2624.5,2624.2,24.87080408]
[1723807746361,3.81026,2624.5,2624.2,2.3398]
[1723807747885,3.8101,2624.6,2624.2,2.3398]
[1723807748619,3.8101,2624.6,2624.2,22.12966553]
[1723807751554,3.80995,2624.7,2624.2,22.12966553]
[1723807751555,3.80995,2624.7,2624.2,25.94021553]
[1723807752329,3.80995,2624.7,2624.2,23.60041553]
[1723807752479,3.80995,2624.7,2624.3,2.2678]
[1723807752687,3.80995,2624.7,2624.4,2.58682155]
[1723807753194,7.62001,2624.7,2624.4,2.58682155]
[1723807753398,7.62001,2624.7,2624.3,2.2678]
[1723807753868,3.81006,2624.7,2624.3,2.2678]
[1723807754069,3.81032,2624.5,2624.3,2.2678]
[1723807754298,1.99738922,2625.0,2624.1,2.4393]
[1723807754299,3.81061,2624.3,2624.1,2.4393]
[1723807754461,3.81068,2624.2,2623.9,2.4393]
[1723807754813,3.81068,2624.2,2623.9,3.32482365]
[1723807755116,3.81061,2624.3,2623.9,3.32482365]
[1723807755117,7.62125,2624.3,2623.9,3.32482365]
[1723807755327,3.81061,2624.3,2623.9,3.32482365]
[1723807755823,3.8107,2624.2,2623.9,3.32482365]
[1723807757156,3.81055,2624.3,2623.9,3.32482365]
[1723807757455,3.81055,2624.3,2624.0,0.71360036]
[1723807758400,7.62119,2624.3,2624.0,0.71360036]
[1723807758696,7.62119,2624.3,2623.9,4.63082365]
[1723807759279,3.81055,2624.3,2623.9,4.63082365]
[1723807759468,3.81083,2624.1,2623.9,2.4393]
[1723807760322,1.306,2624.4,2623.7,22.27066553]
[1723807760323,2.2574,2624.4,2623.7,22.27066553]
[1723807760531,7.62248,2623.9,2623.7,22.27066553]
[1723807760735,3.81126,2623.8,2623.7,22.27066553]
[1723807761146,3.81126,2623.8,2623.7,19.78986553]
[1723807763386,3.81126,2623.8,2623.5,2.4149]
[1723807764189,6.18912,2624.6,2623.6,2.4091]
[1723807764410,3.81095,2624.1,2623.6,2.4091]
[1723807764619,3.81101,2624.0,2623.6,2.4091]
[1723807765427,3.81095,2624.1,2623.6,2.4091]
[1723807765600,3.81119,2623.9,2623.6,2.4091]
[1723807767297,7.62238,2623.9,2623.6,2.4091]
[1723807767525,3.81119,2623.9,2623.6,2.4091]
[1723807767721,3.81119,2623.9,2623.6,3.031187]
[1723807768159,3.81119,2623.9,2623.6,2.4091]
[1723807769138,3.81083,2624.1,2623.8,2.3409]
[1723807769727,3.81097,2624.0,2623.8,2.3409]
[1723807770174,3.81083,2624.1,2623.8,2.3409]
[1723807770465,3.81112,2623.9,2623.8,2.3409]
[1723807770664,7.62233,2623.9,2623.5,2.474]
[1723807770830,3.81112,2623.9,2623.5,2.474]
[1723807775365,3.81084,2624.1,2623.5,22.27666553]
[1723807775585,3.81155,2623.6,2623.5,19.78986553]
[1723807775786,3.81155,2623.6,2623.3,19.78986553]
[1723807775787,3.81184,2623.4,2623.3,19.78986553]
[1723807779312,7.62368,2623.4,2623.3,19.78986553]
[1723807781178,2.4309,2623.8,2623.0,2.4951]
[1723807781179,3.81228,2623.1,2623.0,2.4951]
[1723807781381,3.81242,2623.1,2622.8,2.4951]
[1723807784952,3.81244,2623.0,2622.8,2.4951]
[1723807786624,3.81228,2623.1,2622.8,2.4951]
[1723807786833,3.81251,2623.0,2622.8,2.4951]
[1723807787336,3.81228,2623.1,2622.8,2.4951]
[1723807788561,7.62464,2623.1,2622.8,2.4951]
[1723807788724,3.81228,2623.1,2622.8,2.4951]
[1723807788932,7.62468,2623.1,2622.8,2.4951]
[1723807789227,3.81243,2623.0,2622.8,2.4951]
[1723807790833,3.81228,2623.1,2622.8,2.4951]
[1723807791022,3.81216,2623.2,2622.8,2.74461]
[1723807792133,3.81228,2623.1,2622.8,2.74461]
[1723807792476,3.81228,2623.1,2622.8,2.4951]
[1723807793230,7.62464,2623.1,2622.8,2.4951]
[1723807793549,3.81228,2623.1,2622.8,2.4951]
[1723807794373,3.81228,2623.1,2622.5,2.2638]
[1723807794962,3.81245,2623.0,2622.5,2.2638]
[1723807796856,2.4546,2622.9,2622.0,3.81381]
[1723807797061,1.308,2622.8,2622.1,2.746881]
[1723807797257,3.81316,2622.5,2622.1,2.3655]
[1723807798067,3.81266,2622.9,2622.2,6.08856]
[1723807798286,3.81266,2622.9,2622.4,2.2751]
[1723807798582,5.12037,2623.1,2622.6,2.2751]
[1723807798583,3.81228,2623.1,2622.6,2.2751]
[1723807800432,3.81222,2623.2,2622.6,2.2751]
[1723807800632,0.12,2623.7,2623.0,2.2751]
[1723807800860,3.81172,2623.5,2623.2,2.2751]
[1723807801467,3.93151,2623.7,2622.9,2.4648]
[1723807801468,1.38415787,2623.4,2622.9,2.4648]
[1723807801788,1.38415787,2623.4,2622.4,1.308]
[1723807801789,1.308,2623.0,2622.4,2.4648]
[1723807802006,2.2596,2623.3,2622.4,2.4648]
[1723807802007,5.1208,2622.8,2622.4,2.4648]
[1723807802167,3.81288,2622.7,2622.4,2.4648]
[1723807802496,3.81274,2622.8,2622.4,2.4648]
[1723807802907,3.81287,2622.7,2622.4,2.4648]
[1723807803255,3.81276,2622.8,2622.4,2.4648]
[1723807803675,4.03814,2623.2,2622.4,2.4648]
[1723807803676,7.62581,2622.7,2622.4,2.4648]
[1723807803892,3.81309,2622.6,2622.4,2.4648]
[1723807804266,3.81315,2622.5,2622.4,2.4648]
[1723807806996,3.81332,2622.4,2621.8,2.3765]
[1723807808261,3.81346,2622.3,2621.8,2.3765]
[1723807808609,3.81361,2622.2,2621.8,2.3765]
[1723807809289,7.62674,2622.4,2621.9,2.3765]
[1723807809488,3.81345,2622.3,2621.9,2.3765]
[1723807809853,3.8136,2622.2,2621.9,2.3765]
[1723807811073,3.81375,2622.1,2621.9,2.3765]
[1723807811595,3.81388,2622.0,2621.9,2.3765]
[1723807812693,3.8137,2622.2,2621.5,2.3995]
[1723807812994,3.81368,2622.2,2621.6,2.3995]
[1723807813400,7.62735,2622.2,2621.6,2.3995]
[1723807813558,3.81377,2622.1,2621.6,2.3995]
[1723807813992,3.81358,2622.3,2621.6,2.3995]
[1723807814295,3.81341,2622.4,2621.7,2.72235]
[1723807814296,3.8136,2622.2,2621.7,2.72235]
[1723807814794,3.81315,2622.5,2621.8,2.4824]
[1723807814996,3.81301,2622.6,2621.9,3.81395]
[1723807815298,3.81291,2622.7,2622.1,2.4824]
[1723807815466,3.81316,2622.5,2622.1,2.4824]
[1723807815662,0.07615787,2622.7,2622.1,2.4824]
[1723807815863,3.81354,2622.3,2622.1,2.4824]
[1723807816067,3.81312,2622.6,2622.1,2.4824]
[1723807816286,3.81331,2622.4,2622.1,2.4824]
[1723807816659,3.81351,2622.3,2622.1,2.4824]
[1723807817258,3.81331,2622.4,2622.1,2.4824]
[1723807818272,3.81309,2622.6,2622.1,2.73064]
[1723807818499,3.81317,2622.5,2622.1,2.73064]
[1723807819268,7.6264,2622.5,2622.1,2.73064]
[1723807819818,3.8133,2622.4,2622.1,2.4824]
[1723807819984,3.81354,2622.3,2622.1,2.4824]
[1723807820299,3.81359,2622.2,2622.1,2.4824]
[1723807821300,0.762713,2622.2,2621.6,2.3383]
[1723807821503,5.8066932,2622.9,2621.6,2.3383]
[1723807821504,3.81395,2622.0,2621.6,2.3383]
[1723807821704,4.57673,2622.0,2621.6,2.3383]
[1723807821871,3.81395,2622.0,2621.6,2.3383]
[1723807824313,3.81372,2622.2,2621.6,2.3383]
[1723807824821,3.81331,2622.4,2621.8,2.3429]
[1723807825878,3.81331,2622.4,2622.0,2.4916]
[1723807826079,3.81317,2622.5,2622.0,2.4916]
[1723807826407,3.81311,2622.6,2622.2,2.4916]
[1723807826775,3.81311,2622.6,2622.2,37.4916]
[1723807826970,3.81311,2622.6,2622.2,2.4916]
[1723807827396,7.62625,2622.6,2622.2,2.4916]
[1723807827788,3.81316,2622.5,2622.2,2.4916]
[1723807829302,3.81343,2622.4,2622.2,2.4916]
[1723807829508,3.81359,2622.2,2621.6,3.81446]
[1723807829716,3.81359,2622.2,2622.0,2.3034]
[1723807829933,7.62728,2622.2,2622.0,2.3034]
[1723807830138,3.81373,2622.1,2622.0,2.3034]
[1723807830776,3.81341,2622.4,2622.0,2.3034]
[1723807830978,3.81295,2622.7,2622.0,2.3034]
[1723807831319,2.4869,2622.6,2621.9,2.451]
[1723807831484,3.81353,2622.3,2621.9,2.451]
[1723807831683,7.62621,2622.6,2621.8,3.81409]
[1723807831880,7.6262,2622.6,2622.0,2.451]
[1723807832187,3.81319,2622.5,2622.0,2.451]
[1723807833320,3.81309,2622.6,2622.0,2.451]
[1723807833630,3.81317,2622.5,2622.1,0.381446]
[1723807835102,3.81258,2622.9,2622.2,2.4043]
[1723807835325,3.81209,2623.3,2622.4,2.4043]
[1723807835535,3.81201,2623.3,2622.7,2.4043]
[1723807835737,3.81201,2623.3,2622.8,0.621717]
[1723807835950,3.81201,2623.3,2622.7,2.4043]
[1723807835951,3.81214,2623.2,2622.7,2.4043]
[1723807836219,3.81201,2623.3,2622.7,2.4043]
[1723807836551,3.81214,2623.2,2622.7,2.4043]
[1723807836917,3.81251,2623.0,2622.7,2.4043]
[1723807837661,7.62502,2623.0,2622.7,2.4043]
[1723807837956,3.81251,2623.0,2622.7,2.4043]
[1723807838458,3.8125,2623.0,2622.7,2.4043]
[1723807839155,3.81221,2623.2,2622.7,2.4043]
[1723807839156,3.8123,2623.1,2622.7,2.4043]
[1723807839652,3.81191,2623.4,2622.7,2.64473]
[1723807839966,0.07615787,2623.5,2622.8,2.3683]
[1723807840116,7.62454,2623.2,2622.8,2.3683]
[1723807840316,3.81226,2623.2,2622.8,2.3683]
[1723807840517,3.8103233,2623.2,2622.8,2.3683]
[1723807840823,7.6239,2623.4,2622.8,5.14188888]
[1723807841162,3.81193,2623.4,2622.9,2.36]
[1723807841365,3.81215,2623.2,2622.9,2.36]
[1723807841823,7.62438,2623.2,2622.9,2.36]
[1723807842024,3.81229,2623.1,2622.9,2.36]
[1723807842644,3.81215,2623.2,2622.9,2.36]
[1723807843057,3.81193,2623.4,2622.9,2.36]
[1723807843256,7.62385,2623.4,2622.9,2.596]
[1723807843463,3.8117,2623.5,2622.9,2.596]
[1723807843634,3.81164,2623.6,2623.0,2.4187]
[1723807843853,3.81172,2623.5,2623.1,2.4187]
[1723807844368,3.81185,2623.4,2623.1,2.4187]
[1723807846563,7.62377,2623.4,2623.1,2.4187]
[1723807846733,3.81185,2623.4,2623.1,2.4187]
[1723807846934,3.8117,2623.5,2623.1,2.4187]
[1723807849037,3.81165,2623.6,2623.1,2.4187]
[1723807849239,3.81165,2623.6,2623.2,2.3871]
[1723807849437,0.12,2623.7,2623.2,2.46333506]
[1723807849438,3.93144,2623.7,2623.2,2.46333506]
[1723807849676,3.93144,2623.7,2623.3,2.3871]
[1723807849877,3.93144,2623.7,2623.3,2.77611833]
[1723807850081,3.81158,2623.6,2623.3,2.77611833]
[1723807850280,7.62324,2623.6,2623.3,2.3871]
[1723807850479,7.62323,2623.6,2623.3,2.3871]
[1723807850782,3.93141,2623.7,2623.3,2.3871]
[1723807850943,0.12,2623.7,2623.5,2.3067]
[1723807855684,0.12,2623.7,2623.5,22.09656553]
[1723807857683,0.12,2623.7,2623.6,2.4062]
[1723807857921,0.12,2623.7,2623.6,22.19606553]
[1723807858112,0.12,2623.7,2623.6,24.79685408]
[1723807859007,0.12,2623.7,2623.6,22.19606553]
[1723807859514,3.93141,2623.7,2623.6,19.78986553]
[1723807860082,7.74282,2623.7,2623.6,19.78986553]
[1723807860718,11.55423,2623.7,2623.6,19.78986553]
[1723807860891,13.272313,2623.7,2623.6,19.78986553]
[1723807861329,3.81245,2623.0,2622.8,2.314]
[1723807861710,3.81271,2622.9,2622.4,2.4236]
[1723807862021,3.81286,2622.7,2622.4,3.549947]
[1723807862201,3.81286,2622.7,2622.4,2.4236]
[1723807864029,3.8131,2622.6,2622.4,2.4236]
[1723807864229,3.81315,2622.5,2622.4,2.4236]
[1723807864448,3.81286,2622.7,2622.4,2.4236]
[1723807866507,7.6258,2622.7,2622.4,2.4236]
[1723807866852,3.81286,2622.7,2622.4,2.4236]
[1723807867342,3.81288,2622.7,2622.4,2.4236]
[1723807868902,3.81311,2622.6,2622.4,2.4236]
[1723807869301,3.81267,2622.9,2622.4,2.4236]
[1723807869506,3.81271,2622.8,2622.4,2.4236]
[1723807870317,3.81287,2622.7,2622.4,2.4236]
[1723807870739,7.62582,2622.7,2622.4,2.4236]
[1723807870939,3.81301,2622.6,2622.4,2.4236]
[1723807872143,3.81302,2622.6,2622.4,2.4236]
[1723807872539,3.81315,2622.5,2622.4,2.4236]
[1723807873742,3.81343,2622.4,2622.2,2.48]
[1723807876041,3.81315,2622.5,2622.2,2.48]
[1723807876244,3.81268,2622.9,2622.2,2.48]
[1723807876565,3.81272,2622.8,2622.2,2.48]
[1723807877534,3.81287,2622.7,2622.2,2.48]
[1723807877735,3.81309,2622.6,2622.2,2.48]
[1723807877957,3.81331,2622.4,2622.2,2.48]
[1723807879271,3.81323,2622.5,2622.2,2.48]
[1723807880541,3.81296,2622.7,2622.2,2.48]
[1723807880841,3.81296,2622.7,2622.4,2.2526]
[1723807881180,3.8126,2622.9,2622.4,2.2526]
[1723807881181,3.81272,2622.8,2622.4,2.2526]